bitfinex/quotes_SOLUSD_20250622
["timestamp","ask_amount","ask_price","bid_price","bid_amount"]
[1750576042617,146.9,135.81,135.8,26.0]
[1750576044218,157.33638144,135.81,135.78,31.89188392]
[1750576045921,146.9,135.81,135.78,31.89188392]
[1750576047615,146.9,135.81,135.78,46.62159374]
[1750576047814,146.9,135.81,135.78,57.05797518]
[1750576048415,146.9,135.81,135.79,10.43638144]
[1750576048929,146.9,135.81,135.78,57.05797518]
[1750576050121,146.9,135.81,135.78,46.62159374]
[1750576050319,146.9,135.81,135.78,57.05797518]
[1750576053537,146.9,135.81,135.78,46.62159374]
[1750576053724,146.9,135.81,135.78,57.05797518]
[1750576056929,146.9,135.81,135.8,5.8910162]
[1750576059529,153.26,135.85,135.8,31.05493814]
[1750576059743,146.9,135.85,135.83,10.43638144]
[1750576060230,146.9,135.85,135.82,10.43638144]
[1750576061627,146.9,135.85,135.83,5.88971508]
[1750576062637,157.33638144,135.84,135.82,5.8900826]
[1750576062937,187.27638144,135.84,135.82,5.8900826]
[1750576063511,187.27638144,135.84,135.8,5.8910162]
[1750576063718,10.43638144,135.83,135.8,5.8910162]
[1750576064134,10.43638144,135.82,135.8,5.8910162]
[1750576064340,10.43638144,135.81,135.77,104.91157591]
[1750576064632,157.33638144,135.8,135.78,5.89188392]
[1750576066140,146.9,135.8,135.78,5.89188392]
[1750576066636,187.29638144,135.8,135.78,5.89188392]
[1750576067038,205.9460303,135.79,135.77,104.91157591]
[1750576067239,26.0,135.81,135.73,5.89400139]
[1750576067240,18.64964886,135.77,135.73,5.89400139]
[1750576067430,10.43638144,135.75,135.73,5.89400139]
[1750576067648,176.88,135.76,135.73,5.89400139]
[1750576067649,187.31638144,135.76,135.73,5.89400139]
[1750576068010,157.33638144,135.76,135.73,5.89400139]
[1750576068630,157.33638144,135.76,135.71,10.43638144]
[1750576069931,157.33638144,135.76,135.7,14.73760466]
[1750576070135,146.9,135.76,135.7,14.73760466]
[1750576070333,10.43638144,135.75,135.7,25.1739861]
[1750576070534,10.43638144,135.74,135.7,14.73760466]
[1750576070741,10.43638144,135.74,135.7,25.1739861]
[1750576071158,10.43638144,135.74,135.7,14.73760466]
[1750576071451,40.41638144,135.75,135.71,10.43638144]
[1750576071642,40.41638144,135.75,135.7,14.73760466]
[1750576071851,10.43638144,135.75,135.71,10.43638144]
[1750576072057,10.43638144,135.75,135.7,14.73760466]
[1750576072273,10.43638144,135.75,135.71,10.43638144]
[1750576072657,10.43638144,135.75,135.72,5.89448865]
[1750576073339,176.88,135.76,135.72,5.89448865]
[1750576073539,10.43638144,135.75,135.72,5.89448865]
[1750576073743,176.88,135.76,135.72,5.89448865]
[1750576073941,10.43638144,135.75,135.72,5.89448865]
[1750576074141,176.88,135.76,135.72,5.89448865]
[1750576074351,146.9,135.76,135.74,10.43638144]
[1750576074945,146.9,135.76,135.73,10.43638144]
[1750576075255,146.9,135.76,135.74,10.43638144]
[1750576075434,146.9,135.76,135.73,10.43638144]
[1750576076547,146.9,135.76,135.74,5.89362015]
[1750576077657,146.9,135.76,135.74,16.33000159]
[1750576078151,146.9,135.76,135.75,10.43638144]
[1750576078530,146.9,135.76,135.75,16.32956744]
[1750576080236,146.9,135.8,135.75,31.06253244]
[1750576080443,146.9,135.8,135.78,10.43638144]
[1750576081046,146.9,135.8,135.79,5.89145003]
[1750576082355,157.33638144,135.8,135.79,5.89145003]
[1750576083064,157.33638144,135.8,135.77,5.89231789]
[1750576084163,146.9,135.79,135.77,5.89231789]
[1750576085477,146.9,135.79,135.77,16.32869933]
[1750576087463,146.9,135.79,135.77,5.89231789]
[1750576090670,146.9,135.79,135.77,16.32869933]
[1750576097277,146.9,135.79,135.78,10.43638144]
[1750576099697,146.9,135.79,135.78,16.32826536]
[1750576100657,146.9,135.79,135.78,5.89188392]
[1750576102076,146.9,135.79,135.75,20.626151]
[1750576102271,146.9,135.79,135.75,31.06253244]
[1750576103183,146.9,135.79,135.77,5.89231789]
[1750576105272,146.9,135.79,135.75,31.06253244]
[1750576105581,10.43638144,135.8,135.75,31.06253244]
[1750576105582,146.9,135.78,135.75,31.06253244]
[1750576106360,146.9,135.78,135.77,5.89231789]
[1750576108491,146.9,135.78,135.76,10.43638144]
[1750576109580,146.9,135.78,135.77,5.89231789]
[1750576110487,146.9,135.78,135.75,14.732965]
[1750576110796,146.9,135.78,135.75,25.16934644]
[1750576112280,146.9,135.78,135.76,10.43638144]
[1750576112874,146.9,135.78,135.77,5.89231789]
[1750576113790,146.9,135.78,135.77,16.32869933]
[1750576115893,146.9,135.78,135.77,5.89231789]
[1750576116470,146.9,135.78,135.75,14.732965]
[1750576116471,187.31638144,135.78,135.75,5.893186]
[1750576116781,1.5177,135.76,135.75,5.893186]
[1750576117571,11.95408144,135.76,135.73,5.89405437]
[1750576117900,41.95408144,135.76,135.73,5.89405437]
[1750576118400,146.9,135.75,135.73,5.89405437]
[1750576118981,157.33638144,135.75,135.73,5.89405437]
[1750576119787,157.33638144,135.75,135.72,20.62992669]
[1750576119979,146.9,135.74,135.72,20.62992669]
[1750576120901,146.9,135.74,135.72,31.06630813]
[1750576124103,146.9,135.74,135.73,10.43638144]
[1750576125987,146.9,135.74,135.73,16.33043581]
[1750576131404,6.4,135.77,135.73,31.06557174]
[1750576131706,6.4,135.77,135.75,10.43638144]
[1750576132084,146.9,135.78,135.76,10.43638144]
[1750576132480,146.9,135.78,135.75,10.43638144]
[1750576133808,146.9,135.78,135.76,5.89275191]
[1750576134306,157.33638144,135.78,135.76,5.89275191]
[1750576134495,10.43638144,135.77,135.76,5.89275191]
[1750576136806,10.43638144,135.77,135.73,14.73513593]
[1750576137009,10.43638144,135.77,135.73,25.17151737]
[1750576137384,146.9,135.76,135.73,25.17151737]
[1750576138392,146.9,135.76,135.73,14.73513593]
[1750576140503,146.9,135.76,135.73,20.6291903]
[1750576140686,157.33638144,135.76,135.73,20.6291903]
[1750576142409,146.9,135.76,135.73,20.6291903]
[1750576143285,146.9,135.75,135.73,10.43638144]
[1750576143486,146.9,135.75,135.72,10.43638144]
[1750576144708,146.9,135.75,135.7,20.63375091]
[1750576144909,10.43638144,135.73,135.7,20.63375091]
[1750576145496,187.31638144,135.74,135.7,20.63375091]
[1750576145898,10.43638144,135.73,135.7,20.63375091]
[1750576146813,187.31638144,135.74,135.7,20.63375091]
[1750576147211,187.31638144,135.74,135.67,20.63831354]
[1750576147422,146.9,135.73,135.69,10.43638144]
[1750576149492,146.9,135.73,135.7,5.8953574]
[1750576149826,146.9,135.72,135.71,10.43638144]
[1750576150989,148.407,135.75,135.71,10.43638144]
[1750576151285,146.9,135.75,135.73,10.43638144]
[1750576151486,146.9,135.75,135.7,20.63375091]
[1750576151487,146.9,135.75,135.74,16.33000159]
[1750576152505,10.57797668,135.78,135.74,31.06405198]
[1750576152707,10.57797668,135.78,135.76,10.43638144]
[1750576153504,10.57797668,135.78,135.77,5.89231789]
[1750576153713,10.57797668,135.78,135.77,16.32869933]
[1750576155917,1.5815,135.82,135.77,31.05949405]
[1750576156124,1.5815,135.82,135.8,10.43638144]
[1750576158127,185.0784,135.85,135.81,16.32696387]
[1750576158315,211.0784,135.85,135.82,10.43638144]
[1750576158630,181.0984,135.85,135.82,10.43638144]
[1750576159420,191.53478144,135.85,135.81,10.43638144]
[1750576161430,191.53478144,135.85,135.82,5.89014872]
[1750576162148,174.4534,135.85,135.82,16.32653016]
[1750576163942,172.9,135.85,135.82,31.05190197]
[1750576164115,172.9,135.85,135.83,10.43638144]
[1750576164644,146.9,135.85,135.83,10.43638144]
[1750576165847,146.9,135.85,135.82,10.43638144]
[1750576167117,146.9,135.85,135.83,5.88971508]
[1750576169020,157.33638144,135.85,135.81,20.61682819]
[1750576169316,187.29638144,135.85,135.81,20.61682819]
[1750576169515,187.29638144,135.85,135.81,31.05320963]
[1750576170735,176.86,135.85,135.81,31.05320963]
[1750576170939,146.9,135.85,135.82,10.43638144]
[1750576171348,146.9,135.85,135.83,10.43638144]
[1750576172132,146.9,135.85,135.84,5.8892815]
[1750576174430,146.9,135.85,135.81,10.43638144]
[1750576174628,146.9,135.84,135.81,10.43638144]
[1750576175646,146.9,135.84,135.82,5.89014872]
[1750576181337,146.9,135.84,135.82,16.32653016]
[1750576182753,146.9,135.84,135.83,10.43638144]
[1750576183757,146.9,135.84,135.83,16.32609652]
[1750576184760,146.9,135.84,135.83,5.88971508]
[1750576187559,146.9,135.84,135.83,26.0]
[1750576188544,146.9,135.84,135.82,16.32653016]
[1750576191541,146.9,135.84,135.83,10.43638144]
[1750576192442,17.50175168,135.89,135.83,10.43638144]
[1750576192443,146.9,135.87,135.83,10.43638144]
[1750576192642,146.9,135.87,135.85,10.43638144]
[1750576192849,146.9,135.87,135.84,10.43638144]
[1750576193459,157.33638144,135.87,135.84,5.8892815]
[1750576193645,187.27638144,135.87,135.84,5.8892815]
[1750576194158,176.84,135.87,135.84,5.8892815]
[1750576194558,187.27638144,135.87,135.84,5.8892815]
[1750576195558,10.43638144,135.86,135.84,5.8892815]
[1750576196554,146.9,135.85,135.84,5.8892815]
[1750576197166,146.9,135.85,135.82,25.16175325]
[1750576198467,146.9,135.85,135.82,31.05190197]
[1750576201579,146.9,135.85,135.82,14.72537181]
[1750576203472,146.9,135.85,135.82,20.61552053]
[1750576207486,146.9,135.85,135.82,25.16175325]
[1750576208076,146.9,135.85,135.83,10.43638144]
[1750576209579,146.9,135.85,135.84,5.8892815]
[1750576210213,146.9,135.85,135.84,16.32566294]
[1750576210571,11.06655168,135.89,135.84,31.0488667]
[1750576210770,11.06655168,135.89,135.86,10.43638144]
[1750576211701,11.06655168,135.89,135.87,5.88798115]
[1750576217399,146.9,135.9,135.87,5.88798115]
[1750576218295,157.33638144,135.9,135.87,5.88798115]
[1750576218502,157.33638144,135.9,135.87,20.60793404]
[1750576221784,157.33638144,135.9,135.88,10.43638144]
[1750576221785,146.9,135.9,135.88,10.43638144]
[1750576221986,146.9,135.9,135.87,31.04431548]
[1750576222200,146.9,135.9,135.87,20.60793404]
[1750576223296,157.33638144,135.9,135.87,20.60793404]
[1750576223508,10.43638144,135.88,135.85,5.88884799]
[1750576223814,10.43638144,135.87,135.85,5.88884799]
[1750576224531,157.33638144,135.86,135.82,5.89014872]
[1750576224804,10.43638144,135.85,135.82,5.89014872]
[1750576225997,10.43638144,135.85,135.81,14.72548448]
[1750576227205,146.9,135.86,135.82,10.43638144]
[1750576228320,146.9,135.86,135.83,5.88971508]
[1750576228816,146.9,135.86,135.83,20.61400279]
[1750576229027,146.9,135.86,135.83,31.05038423]
[1750576232890,146.9,135.86,135.84,10.43638144]
[1750576233112,146.9,135.86,135.83,20.61400279]
[1750576233505,146.9,135.86,135.83,31.05038423]
[1750576235906,146.9,135.86,135.84,10.43638144]
[1750576237506,146.9,135.86,135.83,51.16066915]
[1750576237811,146.9,135.86,135.83,46.61400279]
[1750576241928,10.43638144,135.84,135.83,5.88971508]
[1750576243831,10.43638144,135.84,135.81,5.89058243]
[1750576244325,10.43638144,135.82,135.81,5.89058243]
[1750576244522,40.35638144,135.82,135.81,5.89058243]
[1750576244913,148.5056,135.81,135.78,5.89188392]
[1750576245226,187.25638144,135.8,135.78,5.89188392]
[1750576245731,187.25638144,135.8,135.77,20.62242539]
[1750576246224,157.33638144,135.8,135.77,20.62242539]
[1750576247522,157.33638144,135.8,135.77,14.7301075]
[1750576248230,10.43638144,135.79,135.77,14.7301075]
[1750576249329,10.43638144,135.79,135.76,5.89275191]
[1750576249330,10.43638144,135.78,135.76,5.89275191]
[1750576249528,10.43638144,135.77,135.76,5.89275191]
[1750576250619,6.6046,135.78,135.76,5.89275191]
[1750576250921,10.43638144,135.78,135.76,5.89275191]
[1750576251309,6.36,135.79,135.75,31.06253244]
[1750576253712,6.36,135.79,135.76,10.43638144]
[1750576254725,157.33638144,135.8,135.77,20.62311261]
[1750576258542,157.33638144,135.8,135.77,14.73079472]
[1750576260356,146.9,135.8,135.77,14.73079472]
[1750576260556,157.33638144,135.8,135.77,20.62311261]
[1750576263567,157.33638144,135.8,135.77,14.73079472]
[1750576264756,146.9,135.8,135.77,14.73079472]
[1750576264940,157.33638144,135.8,135.77,14.73079472]
[1750576266063,157.33638144,135.8,135.77,20.62311261]
[1750576271679,157.33638144,135.8,135.77,20.62311261]
[1750576272368,10.43638144,135.79,135.77,5.89231789]
[1750576272573,146.9,135.8,135.77,5.89231789]
[1750576272574,10.43638144,135.78,135.77,5.89231789]
[1750576272745,10.43638144,135.78,135.75,5.893186]
[1750576272941,6.69056631,135.78,135.75,5.893186]
[1750576273163,36.61056631,135.78,135.74,20.62683237]
[1750576273762,6.69056631,135.77,135.74,20.62683237]
[1750576274952,10.45463739,135.77,135.74,20.62683237]
[1750576277166,157.35463739,135.78,135.74,31.08146976]
[1750576279977,10.45463739,135.77,135.74,5.89362015]
[1750576280173,10.45463739,135.75,135.73,5.8939582]
[1750576280473,10.45463739,135.74,135.73,5.8939582]
[1750576281149,10.45463739,135.74,135.71,20.63136287]
[1750576282960,178.476,135.76,135.71,20.63136287]
[1750576282961,10.45463739,135.75,135.71,20.63136287]
[1750576283853,10.45463739,135.75,135.71,31.08600026]
[1750576285160,146.9,135.74,135.71,31.08600026]
[1750576286164,146.9,135.74,135.71,20.63136287]
[1750576290271,146.9,135.74,135.71,31.08600026]
[1750576292568,146.9,135.74,135.71,20.63136287]
[1750576293369,146.9,135.74,135.71,25.19107727]
[1750576294361,146.9,135.74,135.71,31.08600026]
[1750576298586,157.35463739,135.74,135.71,20.63136287]
[1750576298787,153.59294283,135.74,135.71,20.63136287]
[1750576311400,153.59294283,135.74,135.71,14.73643988]
[1750576312009,146.9,135.74,135.71,14.73643988]
[1750576313605,146.9,135.74,135.71,20.63136287]
[1750576316985,146.9,135.74,135.71,14.73643988]
[1750576318275,146.9,135.74,135.71,20.63136287]
[1750576321908,146.9,135.74,135.71,14.73643988]
[1750576323500,146.9,135.74,135.71,20.63136287]
[1750576326511,153.59294283,135.74,135.71,20.63136287]
[1750576327528,153.59294283,135.74,135.71,5.89492299]
[1750576328004,153.59294283,135.74,135.7,21.43123711]
[1750576328208,146.9,135.73,135.7,21.43123711]
[1750576329914,146.9,135.73,135.7,27.32659451]
[1750576330311,146.9,135.73,135.7,20.63365168]
[1750576330496,153.59294283,135.73,135.7,20.63365168]
[1750576332115,153.59294283,135.73,135.7,14.73829428]
[1750576332316,6.69294283,135.71,135.69,5.89579187]
[1750576332622,146.9,135.72,135.69,5.89579187]
[1750576332623,153.59294283,135.72,135.69,5.89579187]
[1750576332798,6.69294283,135.71,135.69,5.89579187]
[1750576333199,153.59294283,135.72,135.69,5.89579187]
[1750576333398,153.59294283,135.72,135.68,20.63679244]
[1750576335394,146.9,135.71,135.68,20.63679244]
[1750576336519,146.9,135.71,135.68,21.43350886]
[1750576337218,153.59294283,135.71,135.68,14.74056603]
[1750576337421,6.69294283,135.7,135.68,14.74056603]
[1750576338015,153.59294283,135.71,135.68,14.74056603]
[1750576338221,146.9,135.71,135.69,6.69294283]
[1750576338700,146.9,135.75,135.71,20.63223048]
[1750576338897,1.5031,135.77,135.73,6.69294283]
[1750576339215,146.9,135.79,135.75,6.69294283]
[1750576339718,153.59294283,135.79,135.75,6.69294283]
[1750576340497,153.59294283,135.79,135.76,5.89275191]
[1750576340724,146.9,135.79,135.76,5.89275191]
[1750576341604,146.9,135.79,135.76,20.62463169]
[1750576343436,157.34997056,135.79,135.76,20.62463169]
[1750576344100,10.44997056,135.78,135.76,20.62463169]
[1750576344725,176.82,135.79,135.76,20.62463169]
[1750576344927,10.44997056,135.78,135.76,20.62463169]
[1750576345623,157.34997056,135.79,135.76,14.73187978]
[1750576346935,157.34997056,135.79,135.76,20.62463169]
[1750576348105,157.34997056,135.79,135.76,14.73187978]
[1750576350322,146.9,135.78,135.76,14.73187978]
[1750576350522,157.34997056,135.78,135.76,14.73187978]
[1750576351234,157.34997056,135.77,135.75,5.893186]
[1750576351410,157.34997056,135.76,135.75,5.893186]
[1750576351610,40.36997056,135.76,135.75,5.893186]
[1750576352333,40.36997056,135.76,135.71,20.63223048]
[1750576352516,10.44997056,135.74,135.71,20.63223048]
[1750576354130,10.44997056,135.74,135.71,14.73730749]
[1750576355637,10.44997056,135.74,135.69,29.47679218]
[1750576355838,10.44997056,135.74,135.69,39.92676274]
[1750576356436,10.44997056,135.74,135.69,29.47679218]
[1750576356639,10.44997056,135.74,135.69,39.92676274]
[1750576358233,10.44997056,135.74,135.69,60.5620343]
[1750576359337,10.44997056,135.73,135.69,60.5620343]
[1750576360144,10.44997056,135.74,135.69,60.5620343]
[1750576362842,6.69367721,135.74,135.69,50.90994908]
[1750576364331,6.69367721,135.74,135.69,56.80574095]
[1750576364547,146.9,135.75,135.69,56.80574095]
[1750576364738,6.69367721,135.74,135.69,56.80574095]
[1750576364940,146.9,135.73,135.69,56.80574095]
[1750576367049,146.9,135.73,135.7,6.69367721]
[1750576369356,146.9,135.73,135.71,5.89492299]
[1750576369552,146.9,135.73,135.71,12.5886002]
[1750576378069,146.9,135.73,135.71,5.89492299]
[1750576381761,146.9,135.73,135.69,50.90994908]
[1750576382566,153.59367721,135.72,135.69,14.73947969]
[1750576383776,153.59367721,135.72,135.66,20.63983488]
[1750576383978,153.59367721,135.72,135.67,6.69367721]
[1750576384180,146.9,135.71,135.67,6.69367721]
[1750576384359,6.69367721,135.7,135.66,27.33351209]
[1750576384670,153.59367721,135.71,135.66,27.33351209]
[1750576388164,146.9,135.71,135.68,20.63679244]
[1750576390579,155.11517721,135.71,135.68,20.63679244]
[1750576391652,185.01517721,135.71,135.68,20.63679244]
[1750576392471,155.11517721,135.71,135.68,20.63679244]
[1750576392776,6.69367721,135.69,135.68,5.89622641]
[1750576392991,29.9,135.7,135.68,5.89622641]
[1750576393278,6.69367721,135.69,135.68,5.89622641]
[1750576395581,6.69367721,135.69,135.65,27.33455885]
[1750576395788,146.9,135.68,135.65,20.64088164]
[1750576395970,146.9,135.68,135.65,27.33455885]
[1750576398576,153.59367721,135.68,135.65,20.64088164]
[1750576400565,146.9,135.67,135.65,20.64088164]
[1750576403597,18.64964886,135.65,135.64,75.33949591]
[1750576403773,18.64964886,135.65,135.62,1.6057346]
[1750576403774,146.9,135.64,135.62,1.6057346]
[1750576404082,6.69367721,135.63,135.62,1.6057346]
[1750576404282,6.69367721,135.63,135.62,7.50446724]
[1750576406571,176.82,135.64,135.62,7.50446724]
[1750576406970,187.29541441,135.64,135.62,7.50446724]
[1750576407165,10.47541441,135.63,135.62,7.50446724]
[1750576407369,10.47541441,135.63,135.62,7.50456958]
[1750576409271,29.12506327,135.63,135.62,1.6057346]
[1750576410777,10.47541441,135.63,135.62,7.50456958]
[1750576411471,29.12506327,135.63,135.62,1.6057346]
[1750576415705,29.12506327,135.63,135.62,7.50456958]
[1750576415906,10.47541441,135.63,135.62,1.6057346]
[1750576419609,29.92,135.64,135.62,7.50456958]
[1750576419811,10.47541441,135.63,135.62,7.50456958]
[1750576421213,10.47541441,135.63,135.62,1.6057346]
[1750576422282,10.47541441,135.63,135.62,7.50456958]
[1750576423013,29.92,135.64,135.62,7.50456958]
[1750576423203,10.47541441,135.63,135.62,7.50456958]
[1750576423406,10.47541441,135.63,135.62,1.6057346]
[1750576425721,10.47541441,135.63,135.62,7.50456958]
[1750576426923,6.70653361,135.63,135.62,7.50456958]
[1750576429126,6.70653361,135.63,135.62,1.6057346]
[1750576429819,6.34,135.65,135.62,7.50456958]
[1750576430004,29.92,135.64,135.62,7.50456958]
[1750576430404,68.96653361,135.65,135.62,7.50456958]
[1750576431114,68.96653361,135.65,135.62,22.25165703]
[1750576431924,39.04653361,135.65,135.62,22.25165703]
[1750576432110,6.34,135.65,135.62,22.25165703]
[1750576432818,6.34,135.65,135.62,32.72276807]
[1750576433019,6.34,135.65,135.62,22.25165703]
[1750576433898,16.81111104,135.65,135.62,22.25165703]
[1750576435312,10.47111104,135.64,135.62,22.25165703]
[1750576438299,10.47111104,135.63,135.62,7.50456958]
[1750576440216,40.39111104,135.64,135.62,7.50456958]
[1750576440633,29.92,135.64,135.62,7.50456958]
[1750576441138,10.47111104,135.63,135.62,7.50456958]
[1750576445119,1.506,135.65,135.62,7.50452063]
[1750576445340,26.0,135.65,135.62,22.25160808]
[1750576445543,6.34,135.67,135.63,10.47111104]
[1750576445824,15.04390659,135.7,135.65,6.5111]
[1750576446035,15.04390659,135.7,135.64,1.5341]
[1750576446036,10.47111104,135.69,135.64,1.5341]
[1750576446240,10.47111104,135.69,135.64,12.00521104]
[1750576447141,10.47111104,135.69,135.65,20.64135642]
[1750576447527,10.47111104,135.68,135.65,20.64135642]
[1750576447731,10.47111104,135.69,135.65,20.64135642]
[1750576449355,10.47111104,135.68,135.65,20.64135642]
[1750576450724,10.47111104,135.69,135.65,20.64135642]
[1750576455946,10.47111104,135.68,135.65,20.64135642]
[1750576457521,146.9,135.69,135.65,20.64135642]
[1750576457846,10.47111104,135.68,135.65,20.64135642]
[1750576458921,146.9,135.69,135.65,20.64135642]
[1750576459421,10.47111104,135.68,135.65,20.64135642]
[1750576460953,157.37111104,135.69,135.65,20.64135642]
[1750576462634,146.9,135.68,135.65,20.64135642]
[1750576463544,146.9,135.68,135.65,31.11246746]
[1750576464047,146.9,135.68,135.65,20.64135642]
[1750576465051,157.37111104,135.68,135.65,20.64135642]
[1750576466253,10.47111104,135.66,135.63,20.64440019]
[1750576466463,10.47111104,135.65,135.63,20.64440019]
[1750576467731,29.9,135.67,135.63,20.64440019]
[1750576468051,10.47111104,135.67,135.63,31.11551123]
[1750576468850,183.37111104,135.68,135.64,10.47111104]
[1750576469047,157.37111104,135.68,135.64,10.47111104]
[1750576469960,157.37111104,135.68,135.63,31.11551123]
[1750576471456,146.9,135.67,135.63,20.64440019]
[1750576471634,157.37111104,135.67,135.63,31.11551123]
[1750576474834,146.9,135.67,135.63,31.11551123]
[1750576476652,146.9,135.67,135.65,5.8975304]
[1750576477646,146.18534837,135.67,135.65,5.8975304]
[1750576479463,146.18534837,135.67,135.65,4.8975304]
[1750576485449,146.18534837,135.67,135.64,10.47111104]
[1750576486675,146.18534837,135.67,135.65,5.8975304]
[1750576489761,146.18534837,135.67,135.63,20.64440019]
[1750576490073,146.18534837,135.67,135.64,6.69965857]
[1750576490259,146.18534837,135.67,135.63,27.34405876]
[1750576493877,152.88500694,135.67,135.63,27.34405876]
[1750576494983,146.18534837,135.67,135.63,27.34405876]
[1750576496583,152.88500694,135.67,135.63,20.64440019]
[1750576500591,6.69965857,135.65,135.63,20.64440019]
[1750576500763,6.69965857,135.65,135.63,5.89840005]
[1750576501690,146.18534837,135.66,135.63,5.89840005]
[1750576501991,13.01965857,135.69,135.65,6.69965857]
[1750576502484,6.69965857,135.76,135.68,32.69965857]
[1750576502677,5.48873346,135.76,135.72,6.69965857]
[1750576502985,5.48873346,135.76,135.68,36.45501963]
[1750576502986,10.45501963,135.73,135.68,36.45501963]
[1750576504461,10.45501963,135.73,135.69,5.89579187]
[1750576505584,29.9,135.74,135.69,5.89579187]
[1750576505791,10.45501963,135.73,135.69,16.3508115]
[1750576507085,40.35501963,135.74,135.69,16.3508115]
[1750576507869,40.35501963,135.74,135.7,10.45501963]
[1750576508184,10.45501963,135.74,135.7,10.45501963]
[1750576508886,10.45501963,135.74,135.69,5.89579187]
[1750576509086,10.45501963,135.74,135.71,5.89492299]
[1750576509390,146.18534837,135.73,135.71,5.89492299]
[1750576510474,146.18534837,135.73,135.69,20.63527156]
[1750576510676,146.18534837,135.73,135.69,31.09029119]
[1750576511397,146.18534837,135.73,135.71,10.45501963]
[1750576511609,146.18534837,135.73,135.72,10.45501963]
[1750576511779,37.8204,135.78,135.72,12.09101963]
[1750576511780,6.32,135.78,135.72,12.09101963]
[1750576511973,6.32,135.78,135.75,10.45501963]
[1750576512174,16.77501963,135.78,135.74,10.45501963]
[1750576512793,16.77501963,135.78,135.75,5.893186]
[1750576513273,6.32,135.78,135.75,5.893186]
[1750576513472,16.77501963,135.78,135.75,5.893186]
[1750576514066,6.32,135.78,135.75,10.45501963]
[1750576514667,6.32,135.78,135.74,20.62767054]
[1750576514668,6.32,135.78,135.76,10.45501963]
[1750576514895,6.32,135.78,135.75,10.45501963]
[1750576515077,156.640368,135.8,135.75,10.45501963]
[1750576515790,146.18534837,135.8,135.78,10.45501963]
[1750576515970,146.18534837,135.8,135.76,20.62463169]
[1750576516178,146.18534837,135.8,135.78,10.45501963]
[1750576516995,146.18534837,135.8,135.79,5.89145003]
[1750576517377,6.32,135.83,135.79,16.34646966]
[1750576517579,10.45501963,135.86,135.82,10.45501963]
[1750576517781,10.45501963,135.87,135.82,10.45501963]
[1750576517974,10.45501963,135.86,135.82,10.45501963]
[1750576519298,36.22,135.88,135.83,5.88971508]
[1750576519595,10.45501963,135.87,135.83,31.06902242]
[1750576520392,36.22,135.88,135.83,31.06902242]
[1750576520393,6.32,135.88,135.86,10.45501963]
[1750576520602,146.18534837,135.89,135.86,10.45501963]
[1750576520983,80.33034886,135.93,135.88,10.45501963]
[1750576520984,1.5363,135.93,135.88,10.45501963]
[1750576521175,1.5363,135.93,135.86,10.45501963]
[1750576521176,10.45501963,135.9,135.86,10.45501963]
[1750576521500,10.45501963,135.9,135.87,5.88798115]
[1750576521797,10.45501963,135.88,135.84,10.45501963]
[1750576522004,10.45501963,135.87,135.84,5.8892815]
[1750576522182,10.45501963,135.86,135.84,5.8892815]
[1750576522371,10.45501963,135.89,135.85,10.45501963]
[1750576522577,40.39501963,135.9,135.85,10.45501963]
[1750576523493,40.39501963,135.9,135.86,10.45501963]
[1750576523693,40.39501963,135.9,135.87,5.88798115]
[1750576524097,29.94,135.9,135.87,5.88798115]
[1750576524310,29.96,135.92,135.87,16.34300078]
[1750576524483,146.18534837,135.94,135.9,10.45501963]
[1750576524685,146.18534837,135.94,135.91,10.45501963]
[1750576524994,146.18534837,135.94,135.9,36.45501963]
[1750576525379,146.18534837,135.94,135.91,10.45501963]
[1750576525604,10.45501963,135.96,135.9,26.0]
[1750576525823,10.45501963,135.95,135.92,5.88581518]
[1750576526317,156.640368,135.96,135.92,5.88581518]
[1750576527386,146.18534837,135.96,135.92,16.34083481]
[1750576527584,156.640368,135.96,135.92,16.34083481]
[1750576527796,146.18534837,135.95,135.92,16.34083481]
[1750576528101,146.18534837,135.95,135.93,10.45501963]
[1750576528309,146.18534837,135.95,135.92,31.05537277]
[1750576529019,10.45501963,135.93,135.9,5.88668138]
[1750576530995,10.45501963,135.93,135.89,20.60421255]
[1750576532210,177.67534837,135.95,135.89,20.60421255]
[1750576532410,10.45501963,135.93,135.89,20.60421255]
[1750576534103,10.45501963,135.93,135.89,31.05923218]
[1750576534317,10.45501963,135.93,135.89,25.17211761]
[1750576535838,10.45501963,135.93,135.89,31.05923218]
[1750576539334,10.45501963,135.93,135.89,5.88711457]
[1750576539503,10.45501963,135.92,135.89,5.88711457]